[Event "Turkish Youth Championship 2024"]
[Site "Samsun"]
[Date "2024.05.23"]
[Round "8"]
[White "Ucar, Umut Can"]
[Black "Dogan, Umut Anil"]
[Result "0-1"]
[ECO "A45"]
[WhiteElo "1799"]
[BlackElo "1959"]
[Annotator "NA RC"]
[PlyCount "174"]
[EventDate "2024.05.18"]
[EventType "swiss"]
[EventCountry "TUR"]
[SourceTitle "playchess.com"]
[Source "ChessBase"]
[SourceQuality "1"]
[TimeControl "5400+30"]

1. d4 {[%emt 0:02:00]} Nf6 {[%emt 0:02:00]} 2. Bf4 {[%emt 0:00:30]} g6 {[%emt 0:00:30]} 3. e3 {[%emt 0:00:00]} Bg7 {[%emt 0:00:00]} 4. c3 {[%emt 0:00:00]} d6 {[%emt 0:00:00]} 5. h3 {[%emt 0:00:00]} O-O {[%emt 0:00:00]} 6. Bd3 {[%emt 0:00:00]} Nc6 {[%emt 0:01:00]} 7. Nf3 {[%emt 0:00:30]} Re8 {[%emt 0:00:30]} 8. Bb5 {[%emt 0:02:30]} Bd7 {[%emt 0:00:30]} 9. O-O {[%emt 0:00:30]} a6 {[%emt 0:00:30]} 10. Be2 {[%emt 0:00:30]} e5 {[%emt 0:02:30]} 11. dxe5 {[%emt 0:00:30]} dxe5 {[%emt 0:00:00]} 12. Bh2 {[%emt 0:00:30]} Bf5 {[%emt 0:07:00]} 13. Qxd8 {[%emt 0:03:30]} Raxd8 {[%emt 0:00:30]} 14. Nbd2 {[%emt 0:01:30]} Nd7 {[%emt 0:01:30]} 15. Nb3 {[%emt 0:01:30]} Bf8 {[%emt 0:01:30]} 16. Rad1 {[%emt 0:00:30]} f6 {[%emt 0:00:30]} 17. Rd2 {[%emt 0:09:30]} Nb6 {[%emt 0:00:30]} 18. Rfd1 {[%emt 0:07:30]} Kg7 {[%emt 0:01:30]} 19. Nh4 {[%emt 0:04:30]} Be6 {[%emt 0:00:00]} 20. e4 {[%emt 0:00:30]} Na4 {[%emt 0:01:00]} 21. Nf3 {[%emt 0:03:30]} Bxb3 {[%emt 0:00:30]} 22. axb3 {[%emt 0:00:30]} Nc5 {[%emt 0:00:00]} 23. Rxd8 {[%emt 0:00:30]} Nxd8 {[%emt 0:01:00]} 24. Nd2 {[%emt 0:02:30]} Nf7 {[%emt 0:00:30]} 25. f3 {[%emt 0:01:30]} Ne6 {[%emt 0:00:30]} 26. b4 {[%emt 0:00:30]} Bd6 {[%emt 0:04:30]} 27. Nc4 {[%emt 0:01:30]} Kf8 {[%emt 0:01:30]} 28. Bg3 {[%emt 0:01:30]} Ke7 {[%emt 0:00:30]} 29. Ne3 {[%emt 0:00:30]} c6 {[%emt 0:00:00]} 30. Bc4 {[%emt 0:00:30]} Bc7 {[%emt 0:01:00]} 31. Bxe6 {[%emt 0:00:30]} Kxe6 {[%emt 0:00:00]} 32. Nc4 {[%emt 0:00:00]} b5 {[%emt 0:01:00]} 33. Na5 {[%emt 0:00:00]} Bxa5 {[%emt 0:01:30]} 34. bxa5 {[%emt 0:00:30]} Nd6 {[%emt 0:04:30]} 35. Bf2 {[%emt 0:00:30]} f5 {[%emt 0:01:30]} 36. Bc5 {[%emt 0:01:30]} Nb7 {[%emt 0:00:30]} 37. b4 {[%emt 0:00:30]} Rc8 {[%emt 0:02:30]} 38. Kf2 {[%emt 0:01:30]} Rc7 {[%emt 0:00:00]} 39. Bb6 {[%emt 0:01:30]} Rf7 {[%emt 0:00:00]} 40. exf5+ {[%emt 0:02:30]} gxf5 {[%emt 0:00:30]} 41. g4 {[%emt 0:01:30]} fxg4 {[%emt 0:00:30]} 42. hxg4 {[%emt 0:00:30]} e4 {[%emt 0:00:30]} 43. Ke3 {[%emt 0:01:30]} Rxf3+ {[%emt 0:01:30]} 44. Kxe4 {[%emt 0:00:30]} Rxc3 {[%emt 0:00:00]} 45. Rh1 {[%emt 0:00:30]} Nd6+ {[%emt 0:02:00]} 46. Kf4 {[%emt 0:01:30]} Rc4+ {[%emt 0:00:00]} 47. Kf3 {[%emt 0:00:30]} Nf7 {[%emt 0:01:00]} 48. Bc5 {[%emt 0:01:30]} Ng5+ {[%emt 0:06:30]} 49. Ke3 {[%emt 0:05:30]} Rxg4 {[%emt 0:01:30]} 50. Rh6+ {[%emt 0:00:30]} Kd7 {[%emt 0:00:00]} 51. Rd6+ {[%emt 0:00:00]} Kc7 {[%emt 0:00:00]} 52. Rd1 {[%emt 0:00:00]} Nf7 {[%emt 0:02:30]} 53. Bb6+ {[%emt 0:01:30]} Kc8 {[%emt 0:00:30]} 54. Rh1 {[%emt 0:01:30]} h6 {[%emt 0:02:30]} 55. Rf1 {[%emt 0:01:30]} Ne5 {[%emt 0:01:30]} 56. Rf8+ {[%emt 0:00:30]} Kd7 {[%emt 0:00:30]} 57. Rd8+ {[%emt 0:00:30]} Ke6 {[%emt 0:00:30]} 58. Bc5 {[%emt 0:06:30]} Nd7 {[%emt 0:02:30]} 59. Rc8 {[%emt 0:01:30]} Nxc5 {[%emt 0:01:30]} 60. Rxc6+ {[%emt 0:00:30]} Kd7 {[%emt 0:00:00]} 61. Rxc5 {[%emt 0:00:30]} Rxb4 {[%emt 0:00:00]} 62. Rh5 {[%emt 0:00:30]} Ra4 {[%emt 0:00:30]} 63. Rxh6 {[%emt 0:00:30]} Rxa5 {[%emt 0:00:00]} 64. Kd4 {[%emt 0:00:30]} Ra4+ {[%emt 0:00:00]} 65. Kc5 {[%emt 0:00:30]} b4 {[%emt 0:00:30]} 66. Kc4 {[%emt 0:03:30]} a5 {[%emt 0:00:00]} 67. Kb3 {[%emt 0:00:00]} Ra3+ {[%emt 0:00:00]} 68. Kb2 {[%emt 0:00:00]} Kc7 {[%emt 0:00:30]} 69. Rg6 {[%emt 0:00:30]} Kb7 {[%emt 0:00:30]} 70. Rh6 {[%emt 0:00:00]} Rc3 {[%emt 0:00:30]} 71. Kb1 {[%emt 0:00:00]} Rc6 {[%emt 0:00:30]} 72. Rh5 {[%emt 0:00:00]} Kb6 {[%emt 0:00:00]} 73. Ka1 {[%emt 0:00:00]} Rc5 {[%emt 0:00:00]} 74. Rh4 {[%emt 0:00:30]} Kb5 {[%emt 0:00:30]} 75. Kb1 {[%emt 0:00:00]} Ka4 {[%emt 0:00:00]} 76. Rh3 {[%emt 0:00:00]} Rc3 {[%emt 0:00:00]} 77. Rh2 {[%emt 0:00:30]} Kb3 {[%emt 0:00:30]} 78. Rb2+ {[%emt 0:00:00]} Kc4 {[%emt 0:00:30]} 79. Rh2 {[%emt 0:00:00]} a4 {[%emt 0:00:00]} 80. Kb2 {[%emt 0:00:30]} Rd3 {[%emt 0:00:00]} 81. Rh4+ {[%emt 0:00:30]} Rd4 {[%emt 0:00:30]} 82. Rh2 {[%emt 0:00:00]} a3+ {[%emt 0:00:00]} 83. Ka2 {[%emt 0:00:00]} Kc3 {[%emt 0:00:00]} 84. Rh3+ {[%emt 0:00:30]} Rd3 {[%emt 0:00:30]} 85. Rh8 {[%emt 0:00:30]} Rd2+ {[%emt 0:00:30]} 86. Ka1 {[%emt 0:00:00]} Rd1+ {[%emt 0:00:30]} 87. Ka2 {[%emt 0:00:00]} b3+ {[%emt 0:00:00]} 0-1

[Event "Turkish Youth Championship 2024"]
[Site "Samsun"]
[Date "2024.05.23"]
[Round "8"]
[White "Ozmen, Sevket Mert"]
[Black "Selvi, Kaan"]
[Result "0-1"]
[ECO "B06"]
[WhiteElo "1749"]
[BlackElo "1881"]
[Annotator "NA RC"]
[PlyCount "53"]
[EventDate "2024.05.18"]
[EventType "swiss"]
[EventCountry "TUR"]
[SourceTitle "playchess.com"]
[Source "ChessBase"]
[SourceQuality "1"]
[TimeControl "5400+30"]

1. e4 {[%emt 0:01:00]} c5 {[%emt 0:01:00]} 2. c3 {[%emt 0:00:00]} d5 {[%emt 0:00:30]} 3. exd5 {[%emt 0:00:00]} Qxd5 {[%emt 0:00:30]} 4. d4 {[%emt 0:00:30]} g6 {[%emt 0:00:00]} 5. Nf3 {[%emt 0:01:30]} Bg7 {[%emt 0:00:00]} 6. Be2 {[%emt 0:00:30]} Nf6 {[%emt 0:00:30]} 7. Be3 {[%emt 0:00:30]} cxd4 {[%emt 0:01:30]} 8. cxd4 {[%emt 0:00:30]} O-O {[%emt 0:00:30]} 9. Nc3 {[%emt 0:00:30]} Qa5 {[%emt 0:01:30]} 10. O-O {[%emt 0:01:30]} Nc6 {[%emt 0:02:30]} 11. Qb3 {[%emt 0:04:30]} Qb4 {[%emt 0:15:30]} 12. Qxb4 {[%emt 0:08:30]} Nxb4 {[%emt 0:00:30]} 13. Rfd1 {[%emt 0:08:30]} Nc2 {[%emt 0:05:30]} 14. Rab1 {[%emt 0:05:30]} Nxe3 {[%emt 0:14:30]} 15. fxe3 {[%emt 0:00:00]} Bf5 {[%emt 0:04:30]} 16. Bd3 {[%emt 0:04:00]} Bh6 {[%emt 0:01:30]} 17. e4 {[%emt 0:01:30]} Bg4 {[%emt 0:01:30]} 18. e5 {[%emt 0:08:30]} Nd7 {[%emt 0:04:30]} 19. Be4 {[%emt 0:02:30]} Rab8 {[%emt 0:02:30]} 20. h3 {[%emt 0:03:30]} Bxf3 {[%emt 0:01:30]} 21. Bxf3 {[%emt 0:00:30]} Rfd8 {[%emt 0:01:30]} 22. Kf2 {[%emt 0:01:30]} Nb6 {[%emt 0:08:30]} 23. Rd3 {[%emt 0:11:30]} Nc4 {[%emt 0:04:30]} 24. Bd5 {[%emt 0:09:30]} b5 {[%emt 0:00:30]} 25. b3 {[%emt 0:04:30]} Na3 {[%emt 0:03:30]} 26. Be4 {[%emt 0:06:10]} b4 {[%emt 0:01:30]} 27. Bf3 0-1

[Event "Turkish Youth Championship 2024"]
[Site "Samsun"]
[Date "2024.05.23"]
[Round "8"]
[White "Kalyoncu, Beren"]
[Black "Gokturk, Murat Kutay"]
[Result "0-1"]
[ECO "B22"]
[WhiteElo "1737"]
[BlackElo "1862"]
[Annotator "NA RC"]
[PlyCount "74"]
[EventDate "2024.05.18"]
[EventType "swiss"]
[EventCountry "TUR"]
[SourceTitle "playchess.com"]
[Source "ChessBase"]
[SourceQuality "1"]
[TimeControl "5400+30"]

1. e4 {[%emt 0:01:00]} c5 {[%emt 0:01:00]} 2. c3 {[%emt 0:00:30]} d5 {[%emt 0:00:00]} 3. exd5 {[%emt 0:00:00]} Qxd5 {[%emt 0:00:00]} 4. d4 {[%emt 0:00:00]} Nc6 {[%emt 0:00:00]} 5. Nf3 {[%emt 0:00:30]} Bg4 {[%emt 0:00:00]} 6. Be2 {[%emt 0:01:30]} cxd4 {[%emt 0:00:30]} 7. cxd4 {[%emt 0:00:30]} e6 {[%emt 0:00:00]} 8. Nc3 {[%emt 0:01:30]} Bb4 {[%emt 0:00:00]} 9. O-O {[%emt 0:01:30]} Qa5 {[%emt 0:00:30]} 10. h3 {[%emt 0:01:30]} Bxf3 {[%emt 0:00:30]} 11. Bxf3 {[%emt 0:00:30]} Nge7 {[%emt 0:00:00]} 12. Be3 {[%emt 0:10:30]} Rd8 {[%emt 0:03:00]} 13. a3 {[%emt 0:05:30]} Bxc3 {[%emt 0:02:30]} 14. bxc3 {[%emt 0:00:30]} Qxc3 {[%emt 0:06:30]} 15. Rb1 {[%emt 0:02:30]} Rd7 {[%emt 0:05:30]} 16. Qa4 {[%emt 0:09:30]} O-O {[%emt 0:16:30]} 17. Rb5 {[%emt 0:08:30]} Nd5 {[%emt 0:10:30]} 18. Rc1 {[%emt 0:03:30]} Qd3 {[%emt 0:02:30]} 19. Bxd5 {[%emt 0:05:30]} exd5 {[%emt 0:00:30]} 20. Rb3 {[%emt 0:02:30]} Qe4 {[%emt 0:12:30]} 21. Rcb1 {[%emt 0:02:30]} Qe7 {[%emt 0:01:30]} 22. Qb5 {[%emt 0:19:30]} Qd8 {[%emt 0:06:30]} 23. Qd3 {[%emt 0:13:55]} Na5 {[%emt 0:01:30]} 24. Rb5 {[%emt 0:00:50]} b6 {[%emt 0:01:30]} 25. a4 {[%emt 0:00:05]} Nc4 {[%emt 0:01:30]} 26. Bd2 {[%emt 0:00:20]} a6 {[%emt 0:04:30]} 27. R5b3 {[%emt 0:00:22]} Re8 {[%emt 0:03:30]} 28. Be3 {[%emt 0:01:38]} Rc7 {[%emt 0:01:30]} 29. Qf5 {[%emt 0:02:18]} Qd7 {[%emt 0:06:26]} 30. Qg5 {[%emt 0:02:24]} f6 {[%emt 0:01:44]} 31. Qh5 {[%emt 0:01:23]} Rd8 {[%emt 0:01:16]} 32. Bf4 {[%emt 0:01:28]} Rb7 {[%emt 0:01:23]} 33. Rg3 {[%emt 0:00:55]} Qxa4 {[%emt 0:03:10]} 34. Qf5 {[%emt 0:00:09]} Kh8 {[%emt 0:01:16]} 35. Bh6 {[%emt 0:00:50]} Qe8 {[%emt 0:02:16]} 36. Bxg7+ {[%emt 0:01:27]} Rxg7 37. Qxf6 {[%emt 0:00:03]} Qe7 {[%emt 0:03:09]} 0-1

[Event "Turkish Youth Championship 2024"]
[Site "Samsun"]
[Date "2024.05.23"]
[Round "8"]
[White "Zengin, Ovgu"]
[Black "Buyuk, Ecrin Efsa"]
[Result "0-1"]
[ECO "B13"]
[WhiteElo "1664"]
[BlackElo "1892"]
[Annotator "NA RC"]
[PlyCount "68"]
[EventDate "2024.05.18"]
[EventType "swiss"]
[EventCountry "TUR"]
[SourceTitle "playchess.com"]
[Source "ChessBase"]
[SourceQuality "1"]
[TimeControl "5400+30"]

1. e4 {[%emt 0:01:00]} c6 {[%emt 0:01:00]} 2. d4 {[%emt 0:00:00]} d5 {[%emt 0:00:30]} 3. exd5 {[%emt 0:00:00]} cxd5 {[%emt 0:00:00]} 4. Bd3 {[%emt 0:00:00]} Nc6 {[%emt 0:00:00]} 5. c3 {[%emt 0:00:00]} Nf6 {[%emt 0:00:30]} 6. Bf4 {[%emt 0:00:30]} Bg4 {[%emt 0:00:00]} 7. Qb3 {[%emt 0:00:30]} Qd7 {[%emt 0:00:00]} 8. Nd2 {[%emt 0:00:00]} e6 {[%emt 0:00:00]} 9. Ngf3 {[%emt 0:00:00]} Bxf3 {[%emt 0:00:00]} 10. Nxf3 {[%emt 0:00:30]} Bd6 {[%emt 0:00:00]} 11. Bd2 {[%emt 0:00:00]} O-O {[%emt 0:02:00]} 12. O-O {[%emt 0:00:00]} Qc7 {[%emt 0:07:30]} 13. g3 {[%emt 0:00:00]} Rab8 {[%emt 0:05:30]} 14. Rae1 {[%emt 0:03:00]} Rfc8 {[%emt 0:04:30]} 15. a3 {[%emt 0:01:30]} Na5 {[%emt 0:17:30]} 16. Qc2 {[%emt 0:00:30]} h6 {[%emt 0:00:30]} 17. Ne5 {[%emt 0:17:30]} b5 {[%emt 0:03:30]} 18. Qd1 {[%emt 0:09:30]} Nc4 {[%emt 0:07:30]} 19. Qe2 {[%emt 0:07:30]} Nxb2 {[%emt 0:11:30]} 20. Bxb5 {[%emt 0:03:30]} Ne4 {[%emt 0:03:30]} 21. c4 {[%emt 0:24:30]} Bxe5 {[%emt 0:04:30]} 22. dxe5 {[%emt 0:00:30]} Nxd2 {[%emt 0:01:30]} 23. Qxd2 {[%emt 0:00:30]} Nxc4 {[%emt 0:00:30]} 24. Bxc4 {[%emt 0:03:30]} dxc4 {[%emt 0:00:30]} 25. Re4 {[%emt 0:00:30]} c3 {[%emt 0:00:30]} 26. Qc2 {[%emt 0:01:30]} Rb2 {[%emt 0:02:30]} 27. Qc1 {[%emt 0:00:30]} Rcb8 {[%emt 0:00:30]} 28. Re3 {[%emt 0:09:44]} c2 {[%emt 0:00:30]} 29. Re2 {[%emt 0:01:42]} Qc4 {[%emt 0:00:30]} 30. Ree1 {[%emt 0:06:07]} Rb1 {[%emt 0:00:30]} 31. Qd2 {[%emt 0:02:18]} Rxe1 {[%emt 0:01:30]} 32. Rxe1 {[%emt 0:00:20]} Rb1 {[%emt 0:00:00]} 33. Rc1 {[%emt 0:00:53]} Rxc1+ {[%emt 0:00:00]} 34. Qxc1 {[%emt 0:00:30]} Qd3 {[%emt 0:00:00]} 0-1

[Event "Turkish Youth Championship 2024"]
[Site "Samsun"]
[Date "2024.05.23"]
[Round "8"]
[White "Apaydin, Mehmet Kagan"]
[Black "Basara, Arda"]
[Result "0-1"]
[ECO "A00"]
[WhiteElo "1650"]
[BlackElo "1943"]
[Annotator "NA RC"]
[PlyCount "72"]
[EventDate "2024.05.18"]
[EventType "swiss"]
[EventCountry "TUR"]
[SourceTitle "playchess.com"]
[Source "ChessBase"]
[SourceQuality "1"]
[TimeControl "5400+30"]

1. a3 {[%emt 0:01:00]} Nf6 {[%emt 0:01:00]} 2. d4 {[%emt 0:01:30]} d5 {[%emt 0:00:30]} 3. e3 {[%emt 0:02:30]} Bf5 {[%emt 0:00:30]} 4. Bd3 {[%emt 0:01:30]} Bxd3 {[%emt 0:03:30]} 5. Qxd3 {[%emt 0:01:30]} Nbd7 {[%emt 0:00:00]} 6. Nf3 {[%emt 0:01:30]} e6 {[%emt 0:00:00]} 7. c4 {[%emt 0:01:30]} Be7 {[%emt 0:03:30]} 8. O-O {[%emt 0:01:30]} O-O {[%emt 0:00:30]} 9. Nc3 {[%emt 0:03:30]} dxc4 {[%emt 0:04:30]} 10. Qxc4 {[%emt 0:00:30]} c5 {[%emt 0:00:00]} 11. dxc5 {[%emt 0:01:30]} Bxc5 {[%emt 0:04:00]} 12. b4 {[%emt 0:00:30]} Be7 {[%emt 0:00:30]} 13. Bb2 {[%emt 0:00:30]} Rc8 {[%emt 0:00:00]} 14. Qb5 {[%emt 0:06:30]} Rc7 {[%emt 0:04:00]} 15. Rac1 {[%emt 0:08:30]} a6 {[%emt 0:00:30]} 16. Qe2 {[%emt 0:01:30]} b5 {[%emt 0:06:30]} 17. a4 {[%emt 0:06:30]} bxa4 {[%emt 0:13:30]} 18. Nxa4 {[%emt 0:03:30]} Rxc1 {[%emt 0:04:30]} 19. Rxc1 {[%emt 0:00:30]} Qa8 {[%emt 0:00:00]} 20. Nc5 {[%emt 0:10:30]} Nxc5 {[%emt 0:13:00]} 21. bxc5 {[%emt 0:00:30]} Rc8 {[%emt 0:00:00]} 22. Bxf6 {[%emt 0:16:30]} gxf6 {[%emt 0:05:00]} 23. Qb2 {[%emt 0:01:30]} Qd5 {[%emt 0:04:30]} 24. Qa1 {[%emt 0:04:30]} Rc6 {[%emt 0:03:30]} 25. Nd4 {[%emt 0:03:56]} Rxc5 {[%emt 0:00:00]} 26. Rxc5 {[%emt 0:00:11]} Bxc5 {[%emt 0:00:00]} 27. Qxa6 {[%emt 0:00:23]} Bxd4 {[%emt 0:00:30]} 28. exd4 {[%emt 0:00:30]} Qxd4 {[%emt 0:00:00]} 29. g3 {[%emt 0:06:16]} Kg7 {[%emt 0:00:00]} 30. Qe2 {[%emt 0:02:19]} f5 {[%emt 0:00:30]} 31. Qh5 {[%emt 0:00:37]} Qg4 {[%emt 0:00:30]} 32. Qxg4+ {[%emt 0:02:41]} fxg4 {[%emt 0:00:00]} 33. Kf1 {[%emt 0:02:03]} Kf6 {[%emt 0:02:00]} 34. Ke2 {[%emt 0:00:39]} Ke5 {[%emt 0:01:30]} 35. Ke3 {[%emt 0:00:48]} f5 {[%emt 0:00:30]} 36. Kd3 {[%emt 0:00:17]} f4 {[%emt 0:10:05]} 0-1

[Event "Turkish Youth Championship 2024"]
[Site "Samsun"]
[Date "2024.05.23"]
[Round "8"]
[White "Bilgi, Ali Erdem"]
[Black "Gulbas, Isa"]
[Result "1-0"]
[ECO "B13"]
[WhiteElo "1642"]
[BlackElo "1813"]
[Annotator "NA RC"]
[PlyCount "117"]
[EventDate "2024.05.18"]
[EventType "swiss"]
[EventCountry "TUR"]
[SourceTitle "playchess.com"]
[Source "ChessBase"]
[SourceQuality "1"]
[TimeControl "5400+30"]

1. e4 {[%emt 0:01:00]} c6 {[%emt 0:01:00]} 2. d4 {[%emt 0:00:30]} d5 {[%emt 0:00:30]} 3. exd5 {[%emt 0:00:30]} cxd5 {[%emt 0:00:00]} 4. Bd3 {[%emt 0:00:00]} Nc6 {[%emt 0:00:00]} 5. c3 {[%emt 0:00:00]} Nf6 {[%emt 0:00:30]} 6. h3 {[%emt 0:00:00]} g6 {[%emt 0:00:00]} 7. Qc2 {[%emt 0:00:00]} Bg7 {[%emt 0:00:00]} 8. Nf3 {[%emt 0:00:00]} Qc7 {[%emt 0:08:30]} 9. O-O {[%emt 0:00:00]} O-O {[%emt 0:00:30]} 10. Re1 {[%emt 0:00:30]} Nh5 {[%emt 0:06:30]} 11. b4 {[%emt 0:09:30]} Nf4 {[%emt 0:00:30]} 12. Bxf4 {[%emt 0:00:30]} Qxf4 {[%emt 0:00:30]} 13. b5 {[%emt 0:07:30]} Na5 {[%emt 0:20:30]} 14. Nbd2 {[%emt 0:00:30]} Be6 {[%emt 0:13:30]} 15. Qa4 {[%emt 0:08:30]} b6 {[%emt 0:00:30]} 16. Qb4 {[%emt 0:03:30]} Rac8 {[%emt 0:03:30]} 17. Rac1 {[%emt 0:00:30]} Rc7 {[%emt 0:00:30]} 18. Qb2 {[%emt 0:11:30]} Rfc8 {[%emt 0:02:30]} 19. h4 {[%emt 0:04:30]} Bf5 {[%emt 0:08:30]} 20. g3 {[%emt 0:00:30]} Qg4 {[%emt 0:07:30]} 21. Nh2 {[%emt 0:08:30]} Qh5 {[%emt 0:01:30]} 22. Be2 {[%emt 0:02:30]} Qh6 {[%emt 0:00:30]} 23. Bf3 {[%emt 0:04:30]} e6 {[%emt 0:02:30]} 24. Nhf1 {[%emt 0:00:30]} Bd3 {[%emt 0:08:40]} 25. Ne3 {[%emt 0:01:30]} f5 {[%emt 0:00:17]} 26. Bxd5 {[%emt 0:03:30]} exd5 {[%emt 0:00:33]} 27. Nxd5 {[%emt 0:00:00]} Rd7 {[%emt 0:06:15]} 28. Ne7+ {[%emt 0:00:00]} Rxe7 {[%emt 0:00:30]} 29. Rxe7 {[%emt 0:00:30]} f4 {[%emt 0:03:21]} 30. Rce1 {[%emt 0:01:30]} fxg3 {[%emt 0:00:01]} 31. fxg3 {[%emt 0:00:00]} Bf8 {[%emt 0:02:01]} 32. R7e3 {[%emt 0:01:00]} Bf5 {[%emt 0:01:55]} 33. a4 {[%emt 0:02:30]} Qg7 {[%emt 0:01:20]} 34. Qa1 {[%emt 0:04:30]} Qf7 {[%emt 0:00:45]} 35. Qd1 {[%emt 0:01:30]} Nc4 {[%emt 0:00:32]} 36. Nxc4 {[%emt 0:01:30]} Rxc4 {[%emt 0:00:34]} 37. Rf1 {[%emt 0:02:30]} Qd5 {[%emt 0:01:03]} 38. Re5 {[%emt 0:00:30]} Qd7 {[%emt 0:00:05]} 39. Qb3 {[%emt 0:12:11]} Qc7 {[%emt 0:00:39]} 40. Kh2 {[%emt 0:03:35]} Bd6 {[%emt 0:01:18]} 41. Re3 {[%emt 0:00:05]} Kg7 {[%emt 0:00:15]} 42. Ref3 {[%emt 0:01:54]} Qc8 {[%emt 0:00:47]} 43. Kg1 {[%emt 0:00:25]} Qc7 {[%emt 0:00:27]} 44. Kh2 {[%emt 0:02:12]} Qc8 {[%emt 0:00:30]} 45. Kg1 {[%emt 0:00:30]} Be6 {[%emt 0:00:30]} 46. Qc2 {[%emt 0:00:30]} Bd5 {[%emt 0:00:30]} 47. Re3 {[%emt 0:00:30]} Qh3 {[%emt 0:00:30]} 48. Qh2 {[%emt 0:00:30]} Qg4 {[%emt 0:00:30]} 49. Qf2 {[%emt 0:00:30]} Qd7 {[%emt 0:00:30]} 50. Qf6+ {[%emt 0:00:30]} Kg8 {[%emt 0:00:30]} 51. h5 {[%emt 0:00:30]} Rc8 {[%emt 0:00:30]} 52. hxg6 {[%emt 0:00:30]} Rf8 {[%emt 0:00:30]} 53. gxh7+ {[%emt 0:00:30]} Kxh7 {[%emt 0:00:30]} 54. Qh4+ {[%emt 0:00:30]} Kg6 {[%emt 0:00:30]} 55. Rxf8 {[%emt 0:00:30]} Bxf8 {[%emt 0:00:30]} 56. Re5 {[%emt 0:00:30]} Be6 {[%emt 0:00:30]} 57. Qe4+ {[%emt 0:00:30]} Kf7 {[%emt 0:00:30]} 58. d5 {[%emt 0:00:30]} Bc5+ {[%emt 0:00:30]} 59. Kh2 {[%emt 0:04:50]} 1-0

[Event "Turkish Youth Championship 2024"]
[Site "Samsun"]
[Date "2024.05.23"]
[Round "8"]
[White "Ozer, Yigit Eren"]
[Black "Yogurtcuoglu, Cagan"]
[Result "1-0"]
[ECO "B22"]
[WhiteElo "1519"]
[BlackElo "1714"]
[Annotator "NA RC"]
[PlyCount "57"]
[EventDate "2024.05.18"]
[EventType "swiss"]
[EventCountry "TUR"]
[SourceTitle "playchess.com"]
[Source "ChessBase"]
[SourceQuality "1"]
[TimeControl "5400+30"]

1. e4 {[%emt 0:01:00]} c5 {[%emt 0:01:00]} 2. c3 {[%emt 0:00:00]} d5 {[%emt 0:00:30]} 3. exd5 {[%emt 0:00:00]} Qxd5 {[%emt 0:00:00]} 4. Nf3 {[%emt 0:00:00]} Bg4 {[%emt 0:00:00]} 5. Be2 {[%emt 0:00:00]} Nc6 {[%emt 0:00:00]} 6. Na3 {[%emt 0:00:00]} e5 {[%emt 0:00:00]} 7. d3 {[%emt 0:00:00]} f6 {[%emt 0:01:30]} 8. Nc4 {[%emt 0:01:30]} O-O-O {[%emt 0:00:30]} 9. Ne3 {[%emt 0:03:30]} Qd7 {[%emt 0:02:30]} 10. Nxg4 {[%emt 0:03:30]} Qxg4 {[%emt 0:00:30]} 11. Nxe5 {[%emt 0:00:30]} Qe6 {[%emt 0:02:30]} 12. Nxc6 {[%emt 0:01:30]} Qxc6 {[%emt 0:00:00]} 13. Bf3 {[%emt 0:16:30]} Qc7 {[%emt 0:01:00]} 14. Qa4 {[%emt 0:13:30]} a6 {[%emt 0:00:30]} 15. Bf4 {[%emt 0:05:30]} Bd6 {[%emt 0:00:00]} 16. Bxd6 {[%emt 0:00:30]} Rxd6 {[%emt 0:02:00]} 17. O-O-O {[%emt 0:00:30]} Nh6 {[%emt 0:00:30]} 18. d4 {[%emt 0:04:30]} c4 {[%emt 0:02:30]} 19. Rhe1 {[%emt 0:01:30]} b5 {[%emt 0:01:30]} 20. Qc2 {[%emt 0:00:00]} Kb8 {[%emt 0:00:30]} 21. Qe4 {[%emt 0:04:00]} Ka7 {[%emt 0:00:30]} 22. Qe7 {[%emt 0:10:30]} Qd7 {[%emt 0:07:30]} 23. Bc6 {[%emt 0:09:30]} Qxe7 {[%emt 0:00:30]} 24. Rxe7+ {[%emt 0:00:30]} Kb6 {[%emt 0:00:00]} 25. Be4 {[%emt 0:05:16]} g6 {[%emt 0:01:00]} 26. Rb7+ {[%emt 0:01:21]} Ka5 {[%emt 0:00:30]} 27. b4+ {[%emt 0:00:03]} cxb3 {[%emt 0:01:30]} 28. axb3 {[%emt 0:00:10]} Re8 {[%emt 0:01:30]} 29. Kb2 {[%emt 0:00:19]} 1-0

[Event "Turkish Youth Championship 2024"]
[Site "Samsun"]
[Date "2024.05.24"]
[Round "9"]
[White "Cilek, Bora"]
[Black "Ozgun, Yigit Deniz"]
[Result "1-0"]
[ECO "A11"]
[WhiteElo "2246"]
[BlackElo "1917"]
[Annotator "RC"]
[PlyCount "101"]
[EventDate "2024.05.18"]
[EventType "swiss"]
[EventCountry "TUR"]
[SourceTitle "playchess.com"]
[Source "ChessBase"]
[SourceQuality "1"]
[TimeControl "5400+30"]

1. Nf3 {[%emt 0:01:00]} Nf6 {[%emt 0:03:00]} 2. g3 {[%emt 0:00:00]} d5 {[%emt 0:01:30]} 3. Bg2 {[%emt 0:00:00]} Bf5 {[%emt 0:00:30]} 4. c4 {[%emt 0:00:30]} c6 {[%emt 0:01:30]} 5. Qb3 {[%emt 0:01:30]} Qb6 {[%emt 0:00:30]} 6. d3 {[%emt 0:00:00]} Nbd7 {[%emt 0:02:30]} 7. cxd5 {[%emt 0:00:00]} cxd5 {[%emt 0:03:30]} 8. Nc3 {[%emt 0:09:30]} e6 {[%emt 0:24:30]} 9. Qxb6 {[%emt 0:06:30]} axb6 {[%emt 0:01:30]} 10. O-O {[%emt 0:04:30]} e5 {[%emt 0:01:30]} 11. Nh4 {[%emt 0:12:30]} Be6 {[%emt 0:00:30]} 12. f4 {[%emt 0:03:30]} Bc5+ {[%emt 0:01:30]} 13. Kh1 {[%emt 0:08:30]} exf4 {[%emt 0:03:30]} 14. gxf4 {[%emt 0:01:30]} g6 {[%emt 0:00:30]} 15. e3 {[%emt 0:05:30]} Be7 {[%emt 0:05:30]} 16. f5 {[%emt 0:00:30]} gxf5 {[%emt 0:00:30]} 17. Nxf5 {[%emt 0:01:30]} Rg8 {[%emt 0:02:30]} 18. Bd2 {[%emt 0:01:30]} Nc5 {[%emt 0:03:30]} 19. Nb5 {[%emt 0:03:30]} Kd7 {[%emt 0:00:30]} 20. Nxe7 {[%emt 0:09:30]} Kxe7 {[%emt 0:01:30]} 21. Bb4 {[%emt 0:06:30]} Ng4 {[%emt 0:20:30]} 22. d4 {[%emt 0:00:00]} Ra4 {[%emt 0:05:11]} 23. a3 {[%emt 0:00:00]} Rxb4 {[%emt 0:00:30]} 24. axb4 {[%emt 0:00:30]} Nd3 {[%emt 0:00:08]} 25. Rf3 {[%emt 0:01:30]} Rc8 {[%emt 0:02:18]} 26. Nc3 {[%emt 0:03:30]} Nxb2 {[%emt 0:00:20]} 27. h3 {[%emt 0:01:06]} Rxc3 {[%emt 0:03:42]} 28. hxg4 {[%emt 0:00:08]} Bxg4 {[%emt 0:00:00]} 29. Rg3 {[%emt 0:01:01]} Be6 {[%emt 0:00:50]} 30. Ra7 {[%emt 0:01:17]} Nc4 {[%emt 0:01:06]} 31. Rxb7+ {[%emt 0:00:10]} Kf6 {[%emt 0:00:00]} 32. Kh2 {[%emt 0:04:04]} Nxe3 {[%emt 0:00:33]} 33. Rxb6 {[%emt 0:01:44]} h5 {[%emt 0:00:07]} 34. Bh3 {[%emt 0:01:29]} Rc2+ {[%emt 0:00:23]} 35. Kg1 {[%emt 0:00:15]} Nf5 {[%emt 0:01:20]} 36. Rf3 {[%emt 0:05:38]} Kg5 {[%emt 0:00:43]} 37. Bxf5 {[%emt 0:01:08]} Bxf5 {[%emt 0:00:04]} 38. Rd6 {[%emt 0:00:10]} Be6 {[%emt 0:00:33]} 39. Rd8 {[%emt 0:01:46]} Rc4 {[%emt 0:02:21]} 40. Rg8+ {[%emt 0:00:49]} Kh6 {[%emt 0:01:20]} 41. Rb3 {[%emt 0:00:21]} h4 {[%emt 0:00:42]} 42. b5 {[%emt 0:03:00]} h3 {[%emt 0:00:25]} 43. b6 {[%emt 0:00:14]} Rc1+ {[%emt 0:00:11]} 44. Kf2 {[%emt 0:00:15]} Rc2+ {[%emt 0:00:57]} 45. Ke3 {[%emt 0:00:43]} Kh7 {[%emt 0:00:20]} 46. b7 {[%emt 0:01:27]} Kxg8 {[%emt 0:01:33]} 47. b8=Q+ {[%emt 0:00:30]} Rc8 {[%emt 0:00:00]} 48. Qxc8+ {[%emt 0:01:10]} Bxc8 {[%emt 0:00:04]} 49. Rb8 {[%emt 0:00:00]} h2 {[%emt 0:00:00]} 50. Rxc8+ {[%emt 0:00:00]} Kg7 {[%emt 0:00:12]} 51. Rc1 {[%emt 0:00:00]} 1-0